[Event "Early-Titled-Tuesday-Blitz-February-13-2024"]
[Site "Chess.com"]
[Date "2024.02.13"]
[Round "6"]
[White "Hui_Li_Macau"]
[Black "soloderisas"]
[Result "1/2-1/2"]
[WhiteElo "2365"]
[BlackElo "2525"]
[TimeControl "180+1"]
[EndTime "9:11:17 PST"]
[Termination "Game drawn by agreement"]

1. e4 {[%clk 0:03:00.9]} 1... e5 {[%clk 0:02:58.9]} 2. Nf3 {[%clk 0:03:01]} 2...
Nc6 {[%clk 0:02:49.1]} 3. Bb5 {[%clk 0:03:01]} 3... a6 {[%clk 0:02:48.8]} 4. Ba4
{[%clk 0:02:57.4]} 4... Nf6 {[%clk 0:02:49.1]} 5. O-O {[%clk 0:02:57.4]} 5... b5
{[%clk 0:02:46.7]} 6. Bb3 {[%clk 0:02:57]} 6... Bc5 {[%clk 0:02:47.4]} 7. a4
{[%clk 0:02:56.4]} 7... Rb8 {[%clk 0:02:46.8]} 8. axb5 {[%clk 0:02:56.5]} 8...
axb5 {[%clk 0:02:46.4]} 9. c3 {[%clk 0:02:56.9]} 9... d6 {[%clk 0:02:45.9]} 10.
d4 {[%clk 0:02:56.9]} 10... Bb6 {[%clk 0:02:45.2]} 11. Na3 {[%clk 0:02:56.8]}
11... b4 {[%clk 0:02:39.8]} 12. Nc4 {[%clk 0:02:56]} 12... O-O {[%clk
0:02:32.6]} 13. Nxb6 {[%clk 0:02:36.7]} 13... Rxb6 {[%clk 0:02:31.7]} 14. Be3
{[%clk 0:01:50.9]} 14... bxc3 {[%clk 0:02:31]} 15. bxc3 {[%clk 0:01:48.9]} 15...
Nxe4 {[%clk 0:02:27.9]} 16. d5 {[%clk 0:01:37.2]} 16... Nxc3 {[%clk 0:02:19.6]}
17. Qc2 {[%clk 0:01:36.9]} 17... Nd4 {[%clk 0:02:02.4]} 18. Nxd4 {[%clk
0:00:59.6]} 18... exd4 {[%clk 0:01:59.2]} 19. Bxd4 {[%clk 0:00:59.9]} 19... Rxb3
{[%clk 0:01:54.8]} 20. Bxc3 {[%clk 0:00:52.4]} 20... Rb5 {[%clk 0:01:47.2]} 21.
Ra5 {[%clk 0:00:47.1]} 21... Bd7 {[%clk 0:01:35.4]} 22. Rxb5 {[%clk 0:00:32.1]}
22... Bxb5 {[%clk 0:01:35.1]} 23. Rb1 {[%clk 0:00:32.4]} 23... Qd7 {[%clk
0:01:18.6]} 24. Qb2 {[%clk 0:00:19.7]} 24... Bd3 {[%clk 0:01:18.5]} 25. Rd1
{[%clk 0:00:18.8]} 25... Be4 {[%clk 0:01:17.4]} 26. Bxg7 {[%clk 0:00:13.6]}
26... Qg4 {[%clk 0:01:14.7]} 27. f3 {[%clk 0:00:13.9]} 27... Qxg7 {[%clk
0:01:09.8]} 28. Qxg7+ {[%clk 0:00:12.9]} 28... Kxg7 {[%clk 0:01:10.7]} 29. fxe4
{[%clk 0:00:13.8]} 29... Re8 {[%clk 0:01:09.3]} 30. Re1 {[%clk 0:00:09.9]} 30...
Kf6 {[%clk 0:01:09.2]} 31. Kf2 {[%clk 0:00:09.4]} 31... Ke5 {[%clk 0:01:09.3]}
32. Rc1 {[%clk 0:00:08.5]} 32... Re7 {[%clk 0:00:58.6]} 33. Ke3 {[%clk
0:00:08.9]} 33... f5 {[%clk 0:00:58.6]} 34. exf5 {[%clk 0:00:07.5]} 34... Kxf5+
{[%clk 0:00:58.3]} 35. Kd4 {[%clk 0:00:07.3]} 35... Re4+ {[%clk 0:00:49.3]} 36.
Kd3 {[%clk 0:00:07.4]} 36... Re7 {[%clk 0:00:48.8]} 37. Kd4 {[%clk 0:00:07.7]}
37... Rg7 {[%clk 0:00:48.6]} 38. Rc2 {[%clk 0:00:06.9]} 38... Rg4+ {[%clk
0:00:48.1]} 39. Kd3 {[%clk 0:00:07.2]} 39... h5 {[%clk 0:00:43.4]} 40. g3 {[%clk
0:00:07.1]} 40... Ke5 {[%clk 0:00:42.2]} 41. Rxc7 {[%clk 0:00:06.7]} 41... h4
{[%clk 0:00:41.5]} 42. Rh7 {[%clk 0:00:06]} 42... hxg3 {[%clk 0:00:39.7]} 43.
hxg3 {[%clk 0:00:06.2]} 43... Rxg3+ {[%clk 0:00:39.5]} 44. Kc4 {[%clk
0:00:06.4]} 44... Rg4+ {[%clk 0:00:39.1]} 45. Kd3 {[%clk 0:00:06.7]} 45... Kxd5
{[%clk 0:00:39.3]} 46. Rh5+ {[%clk 0:00:07.3]} 46... Kc6 {[%clk 0:00:39.5]} 47.
Kc3 {[%clk 0:00:06.6]} 47... Rf4 {[%clk 0:00:38.3]} 48. Kd3 {[%clk 0:00:06.7]}
48... Ra4 {[%clk 0:00:38.2]} 49. Kc3 {[%clk 0:00:06.6]} 49... Kd7 {[%clk
0:00:37.9]} 50. Kd3 {[%clk 0:00:06.7]} 50... Ke6 {[%clk 0:00:38]} 51. Rh6+
{[%clk 0:00:06.7]} 51... Kd5 {[%clk 0:00:37.2]} 52. Rh5+ {[%clk 0:00:06.9]}
52... Kc6 {[%clk 0:00:37.5]} 53. Kc3 {[%clk 0:00:07.4]} 53... Re4 {[%clk
0:00:37]} 54. Kd3 {[%clk 0:00:07.7]} 54... d5 {[%clk 0:00:37.4]} 55. Rh8 {[%clk
0:00:06.8]} 55... Rg4 {[%clk 0:00:36.9]} 56. Kc3 {[%clk 0:00:05.7]} 56... Kc5
{[%clk 0:00:36]} 57. Rc8+ {[%clk 0:00:05.5]} 57... Kd6 {[%clk 0:00:36.7]} 58.
Kd3 {[%clk 0:00:05.3]} 58... Rg3+ {[%clk 0:00:35.8]} 59. Kd4 {[%clk 0:00:05.5]}
59... Rg4+ {[%clk 0:00:35.9]} 60. Kd3 {[%clk 0:00:05.9]} 60... Ke5 {[%clk
0:00:36.8]} 61. Re8+ {[%clk 0:00:05.7]} 61... Kd6 {[%clk 0:00:36.7]} 62. Rd8+
{[%clk 0:00:05.3]} 62... Kc6 {[%clk 0:00:36.7]} 63. Kc3 {[%clk 0:00:05.7]} 63...
Rg7 {[%clk 0:00:36.8]} 64. Kd4 {[%clk 0:00:05.3]} 64... Ra7 {[%clk 0:00:36.3]}
65. Rc8+ {[%clk 0:00:05.3]} 65... Kd7 {[%clk 0:00:35.7]} 66. Rh8 {[%clk
0:00:05]} 66... Ra5 {[%clk 0:00:34.3]} 67. Rh6 {[%clk 0:00:04.5]} 1/2-1/2

[Event "Early-Titled-Tuesday-Blitz-February-13-2024"]
[Site "Chess.com"]
[Date "2024.02.13"]
[Round "6"]
[White "PavelShkapenko"]
[Black "andrzej"]
[Result "0-1"]
[WhiteElo "2755"]
[BlackElo "2512"]
[TimeControl "180+1"]
[EndTime "9:11:19 PST"]
[Termination "andrzej won by resignation"]

1. e4 {[%clk 0:03:00.9]} 1... e5 {[%clk 0:02:57.3]} 2. Nf3 {[%clk 0:03:00.5]}
2... Nf6 {[%clk 0:02:55.4]} 3. Nc3 {[%clk 0:03:00.2]} 3... Bb4 {[%clk
0:02:55.4]} 4. Nxe5 {[%clk 0:02:59.7]} 4... O-O {[%clk 0:02:56]} 5. Be2 {[%clk
0:02:40.1]} 5... Re8 {[%clk 0:02:55.7]} 6. Nd3 {[%clk 0:02:40]} 6... Bxc3 {[%clk
0:02:56.2]} 7. dxc3 {[%clk 0:02:40.4]} 7... Nxe4 {[%clk 0:02:56.8]} 8. O-O
{[%clk 0:02:40.6]} 8... d6 {[%clk 0:02:57.5]} 9. Bf3 {[%clk 0:02:40.1]} 9... Nd7
{[%clk 0:02:54.6]} 10. Be3 {[%clk 0:02:38.7]} 10... b6 {[%clk 0:02:50.3]} 11.
Nf4 {[%clk 0:02:27]} 11... Bb7 {[%clk 0:02:46.7]} 12. Re1 {[%clk 0:02:23.3]}
12... Ndf6 {[%clk 0:02:43.9]} 13. c4 {[%clk 0:02:12.3]} 13... Qd7 {[%clk
0:02:33.1]} 14. Nd5 {[%clk 0:02:02.3]} 14... Nxd5 {[%clk 0:02:12.7]} 15. cxd5
{[%clk 0:02:03.2]} 15... Qf5 {[%clk 0:01:51.3]} 16. c4 {[%clk 0:01:59.7]} 16...
Ng5 {[%clk 0:01:43.5]} 17. Bg4 {[%clk 0:01:55.1]} 17... Qg6 {[%clk 0:01:42.4]}
18. Kh1 {[%clk 0:01:15.9]} 18... a5 {[%clk 0:01:37.4]} 19. b3 {[%clk 0:01:08.1]}
19... h6 {[%clk 0:01:35.9]} 20. Qb1 {[%clk 0:01:00]} 20... Ne4 {[%clk
0:01:31.6]} 21. Bf3 {[%clk 0:00:56.1]} 21... f5 {[%clk 0:01:23.1]} 22. Qc2
{[%clk 0:00:46.8]} 22... Re7 {[%clk 0:01:22.8]} 23. Kg1 {[%clk 0:00:45.5]} 23...
Rae8 {[%clk 0:01:23]} 24. Qe2 {[%clk 0:00:36.6]} 24... Qf6 {[%clk 0:01:20.6]}
25. Qd3 {[%clk 0:00:33.4]} 25... Bc8 {[%clk 0:01:11.1]} 26. Qd4 {[%clk 0:00:31]}
26... Qxd4 {[%clk 0:01:01.3]} 27. Bxd4 {[%clk 0:00:30.8]} 27... Nd2 {[%clk
0:01:02]} 28. Re3 {[%clk 0:00:23.3]} 28... f4 {[%clk 0:00:53.6]} 29. Rxe7 {[%clk
0:00:22.3]} 29... Nxf3+ {[%clk 0:00:54.1]} 30. gxf3 {[%clk 0:00:22.6]} 30...
Rxe7 {[%clk 0:00:55]} 31. h4 {[%clk 0:00:21.2]} 31... g6 {[%clk 0:00:51.9]} 32.
Bc3 {[%clk 0:00:19]} 32... Bf5 {[%clk 0:00:48.3]} 33. a3 {[%clk 0:00:18.8]}
33... Bd3 {[%clk 0:00:45.3]} 34. b4 {[%clk 0:00:15.5]} 34... a4 {[%clk
0:00:38.6]} 35. Rc1 {[%clk 0:00:10.9]} 35... Kf7 {[%clk 0:00:31]} 36. Bd4 {[%clk
0:00:11.2]} 36... Be2 {[%clk 0:00:19.9]} 37. c5 {[%clk 0:00:11.5]} 37... bxc5
{[%clk 0:00:19.2]} 38. bxc5 {[%clk 0:00:11.6]} 38... Bxf3 {[%clk 0:00:19.9]} 39.
cxd6 {[%clk 0:00:11.9]} 39... cxd6 {[%clk 0:00:20.4]} 40. Kf1 {[%clk 0:00:12.1]}
40... Bxd5 {[%clk 0:00:19.9]} 41. Rd1 {[%clk 0:00:09.3]} 41... Bc4+ {[%clk
0:00:18.5]} 42. Kg1 {[%clk 0:00:08.9]} 42... f3 {[%clk 0:00:18]} 43. Rb1 {[%clk
0:00:08.7]} 43... d5 {[%clk 0:00:17.4]} 44. Rb8 {[%clk 0:00:08.7]} 44... Re1+
{[%clk 0:00:15.6]} 45. Kh2 {[%clk 0:00:08.9]} 45... Bf1 {[%clk 0:00:14.2]} 46.
Rb7+ {[%clk 0:00:05.8]} 46... Ke6 {[%clk 0:00:14.1]} 47. Rb6+ {[%clk 0:00:06.4]}
47... Kf5 {[%clk 0:00:12.4]} 48. Kg3 {[%clk 0:00:06.8]} 48... g5 {[%clk
0:00:11.8]} 49. Rf6+ {[%clk 0:00:06.7]} 49... Ke4 {[%clk 0:00:09.3]} 50. Re6+
{[%clk 0:00:07.4]} 50... Kxd4 {[%clk 0:00:09.8]} 51. Rxe1 {[%clk 0:00:08.1]}
51... gxh4+ {[%clk 0:00:09.3]} 52. Kxf3 {[%clk 0:00:07.6]} 52... Bc4 {[%clk
0:00:05.4]} 53. Kg4 {[%clk 0:00:07.5]} 53... Kc3 {[%clk 0:00:05.3]} 54. Kxh4
{[%clk 0:00:06.3]} 54... d4 {[%clk 0:00:05.5]} 55. f4 {[%clk 0:00:06.9]} 55...
d3 {[%clk 0:00:06]} 56. f5 {[%clk 0:00:05.3]} 56... d2 {[%clk 0:00:06.4]} 57.
Rg1 {[%clk 0:00:05.3]} 57... Kc2 {[%clk 0:00:06.4]} 58. Rg2 {[%clk 0:00:04.1]}
58... Kc1 {[%clk 0:00:06.7]} 59. Rg1+ {[%clk 0:00:03.3]} 59... d1=Q {[%clk
0:00:06.9]} 60. Rxd1+ {[%clk 0:00:04.2]} 60... Kxd1 {[%clk 0:00:07.5]} 61. Kh5
{[%clk 0:00:04.9]} 61... Kc2 {[%clk 0:00:07.7]} 62. Kxh6 {[%clk 0:00:05.6]}
62... Kb3 {[%clk 0:00:08.1]} 63. Kg7 {[%clk 0:00:06]} 63... Kxa3 {[%clk
0:00:08.4]} 64. Kf6 {[%clk 0:00:06.7]} 64... Kb2 {[%clk 0:00:08.6]} 65. Ke5
{[%clk 0:00:07.6]} 65... a3 {[%clk 0:00:09]} 66. Kd4 {[%clk 0:00:08.5]} 66...
Bb3 {[%clk 0:00:09]} 0-1

[Event "Early-Titled-Tuesday-Blitz-February-13-2024"]
[Site "Chess.com"]
[Date "2024.02.13"]
[Round "6"]
[White "winniethepooh04"]
[Black "Maitreia"]
[Result "0-1"]
[WhiteElo "2535"]
[BlackElo "2762"]
[TimeControl "180+1"]
[EndTime "9:11:19 PST"]
[Termination "Maitreia won by resignation"]

1. d4 {[%clk 0:03:00.9]} 1... Nf6 {[%clk 0:02:55.1]} 2. Nf3 {[%clk 0:03:01.3]}
2... g6 {[%clk 0:02:54.5]} 3. Bf4 {[%clk 0:03:01.9]} 3... Bg7 {[%clk 0:02:55.1]}
4. e3 {[%clk 0:03:01.8]} 4... O-O {[%clk 0:02:56]} 5. Be2 {[%clk 0:03:01.6]}
5... b6 {[%clk 0:02:55.2]} 6. O-O {[%clk 0:03:00.6]} 6... c5 {[%clk 0:02:55.8]}
7. c3 {[%clk 0:03:00.4]} 7... Bb7 {[%clk 0:02:55.9]} 8. Nbd2 {[%clk 0:02:59.8]}
8... d6 {[%clk 0:02:56.6]} 9. h3 {[%clk 0:02:59.2]} 9... Nbd7 {[%clk 0:02:56.6]}
10. a4 {[%clk 0:02:59.7]} 10... a6 {[%clk 0:02:57.1]} 11. Re1 {[%clk 0:03:00.3]}
11... Qc7 {[%clk 0:02:57.6]} 12. Bh2 {[%clk 0:03:00]} 12... Bc6 {[%clk
0:02:54.8]} 13. Bd3 {[%clk 0:03:00.1]} 13... b5 {[%clk 0:02:52]} 14. e4 {[%clk
0:03:00.1]} 14... cxd4 {[%clk 0:02:36.2]} 15. cxd4 {[%clk 0:02:53.8]} 15... bxa4
{[%clk 0:02:33.9]} 16. e5 {[%clk 0:02:52.4]} 16... Nd5 {[%clk 0:02:28.4]} 17.
exd6 {[%clk 0:02:48.5]} 17... exd6 {[%clk 0:02:29.3]} 18. Nc4 {[%clk 0:02:44.4]}
18... Rfe8 {[%clk 0:02:22]} 19. Rxe8+ {[%clk 0:02:39.8]} 19... Rxe8 {[%clk
0:02:22.9]} 20. Nxd6 {[%clk 0:02:40.3]} 20... Re6 {[%clk 0:02:17.6]} 21. Nxf7
{[%clk 0:02:32.7]} 21... Qb6 {[%clk 0:02:06.1]} 22. N7g5 {[%clk 0:02:31.6]}
22... Re8 {[%clk 0:02:02.5]} 23. Nxh7 {[%clk 0:02:17.3]} 23... Kxh7 {[%clk
0:02:00]} 24. Ng5+ {[%clk 0:02:16]} 24... Kg8 {[%clk 0:01:57.1]} 25. Bxg6 {[%clk
0:02:14.9]} 25... N7f6 {[%clk 0:01:50.8]} 26. Bxe8 {[%clk 0:02:07.7]} 26... Bxe8
{[%clk 0:01:51.7]} 27. Rxa4 {[%clk 0:01:41.2]} 27... Bxa4 {[%clk 0:01:49]} 28.
Qxa4 {[%clk 0:01:42.1]} 28... Qxb2 {[%clk 0:01:45.2]} 29. Be5 {[%clk 0:01:40.4]}
29... Qc1+ {[%clk 0:01:40.8]} 30. Kh2 {[%clk 0:01:40.3]} 30... Qxg5 {[%clk
0:01:41.2]} 31. Qxa6 {[%clk 0:01:40.2]} 31... Nf4 {[%clk 0:01:25.7]} 32. g3
{[%clk 0:01:24.4]} 32... Ng6 {[%clk 0:01:20.9]} 33. Qc8+ {[%clk 0:01:19.2]}
33... Kh7 {[%clk 0:01:19.6]} 34. Qc2 {[%clk 0:01:19.3]} 34... Nh5 {[%clk
0:01:05.4]} 35. Bxg7 {[%clk 0:01:05.8]} 35... Nxg7 {[%clk 0:01:06.3]} 36. Qe4
{[%clk 0:01:01]} 36... Nf5 {[%clk 0:00:57.7]} 37. d5 {[%clk 0:00:57.2]} 37...
Qf6 {[%clk 0:00:56.7]} 38. h4 {[%clk 0:00:50.7]} 38... Nd6 {[%clk 0:00:53.4]}
39. Qc2 {[%clk 0:00:50.8]} 39... Kg7 {[%clk 0:00:52.8]} 40. Kg2 {[%clk
0:00:46.9]} 40... Ne5 {[%clk 0:00:52.5]} 41. Qe2 {[%clk 0:00:44.9]} 41... Qf5
{[%clk 0:00:43.2]} 42. Qe3 {[%clk 0:00:36.2]} 42... Nef7 {[%clk 0:00:42.2]} 43.
Qe6 {[%clk 0:00:34]} 43... Qh7 {[%clk 0:00:33]} 44. Qe3 {[%clk 0:00:28.1]} 44...
Qh5 {[%clk 0:00:28.6]} 45. Qe6 {[%clk 0:00:26.4]} 45... Nf5 {[%clk 0:00:24.3]}
46. Qe1 {[%clk 0:00:17.3]} 46... Qg4 {[%clk 0:00:23.9]} 47. Qc3+ {[%clk
0:00:17.4]} 47... Kg6 {[%clk 0:00:23.8]} 48. Qc6+ {[%clk 0:00:16.8]} 48... N7d6
{[%clk 0:00:23.3]} 49. Kh2 {[%clk 0:00:16.8]} 49... Qf3 {[%clk 0:00:22.4]} 50.
Kg1 {[%clk 0:00:17.1]} 50... Qd1+ {[%clk 0:00:20.4]} 51. Kg2 {[%clk 0:00:16.8]}
51... Qd3 {[%clk 0:00:20]} 52. Qa8 {[%clk 0:00:15.3]} 52... Qe4+ {[%clk
0:00:19.7]} 53. Kg1 {[%clk 0:00:15.6]} 53... Kf7 {[%clk 0:00:19.8]} 54. Qa7+
{[%clk 0:00:15.3]} 54... Ne7 {[%clk 0:00:20.3]} 55. Qa8 {[%clk 0:00:15.1]} 55...
Nxd5 {[%clk 0:00:19.5]} 56. Qh8 {[%clk 0:00:15]} 56... Nf6 {[%clk 0:00:18.9]}
57. Qb8 {[%clk 0:00:13.1]} 57... Nf5 {[%clk 0:00:18.7]} 58. Qc7+ {[%clk
0:00:13.4]} 58... Kg6 {[%clk 0:00:17.2]} 59. Qc8 {[%clk 0:00:13.1]} 59... Nd4
{[%clk 0:00:16.1]} 60. Qh3 {[%clk 0:00:11.6]} 60... Nf3+ {[%clk 0:00:15.9]} 61.
Kf1 {[%clk 0:00:11.9]} 61... Ng4 {[%clk 0:00:13]} 62. h5+ {[%clk 0:00:12]} 62...
Kh6 {[%clk 0:00:12.1]} 63. Kg2 {[%clk 0:00:05.7]} 63... Ng5+ {[%clk 0:00:09.3]}
64. f3 {[%clk 0:00:06.6]} 64... Qxf3+ {[%clk 0:00:09.2]} 0-1

[Event "Early-Titled-Tuesday-Blitz-February-13-2024"]
[Site "Chess.com"]
[Date "2024.02.13"]
[Round "6"]
[White "KaterynaLagno"]
[Black "zverr1"]
[Result "1-0"]
[WhiteElo "2804"]
[BlackElo "2574"]
[TimeControl "180+1"]
[EndTime "9:11:20 PST"]
[Termination "KaterynaLagno won on time"]

1. e4 {[%clk 0:03:00.9]} 1... c5 {[%clk 0:02:57.7]} 2. Nf3 {[%clk 0:03:01.1]}
2... Nc6 {[%clk 0:02:57.1]} 3. Nc3 {[%clk 0:02:59.5]} 3... g6 {[%clk 0:02:55.4]}
4. Bb5 {[%clk 0:02:57.2]} 4... Bg7 {[%clk 0:02:43.2]} 5. d3 {[%clk 0:02:56.4]}
5... Nd4 {[%clk 0:02:37.8]} 6. Bc4 {[%clk 0:02:56.1]} 6... d6 {[%clk 0:02:29.2]}
7. Nxd4 {[%clk 0:02:44.8]} 7... cxd4 {[%clk 0:02:21.8]} 8. Ne2 {[%clk
0:02:44.3]} 8... e6 {[%clk 0:02:16.5]} 9. h4 {[%clk 0:02:39.2]} 9... h5 {[%clk
0:02:14.5]} 10. Bb3 {[%clk 0:02:33.2]} 10... Bd7 {[%clk 0:01:58.9]} 11. a4
{[%clk 0:02:30.7]} 11... Bc6 {[%clk 0:01:49.7]} 12. Bg5 {[%clk 0:02:24.6]} 12...
Qd7 {[%clk 0:01:47.9]} 13. a5 {[%clk 0:02:19.9]} 13... d5 {[%clk 0:01:39.4]} 14.
f3 {[%clk 0:02:18.8]} 14... Ne7 {[%clk 0:01:30.6]} 15. Qd2 {[%clk 0:02:13.6]}
15... a6 {[%clk 0:01:24.8]} 16. O-O {[%clk 0:01:53.2]} 16... O-O-O {[%clk
0:01:18.7]} 17. Qb4 {[%clk 0:01:44]} 17... f6 {[%clk 0:01:13.2]} 18. Bd2 {[%clk
0:01:44.6]} 18... e5 {[%clk 0:01:08.4]} 19. Qb6 {[%clk 0:01:38.7]} 19... Qc7
{[%clk 0:01:03.4]} 20. Bb4 {[%clk 0:01:30.7]} 20... Qxb6 {[%clk 0:01:00.3]} 21.
axb6 {[%clk 0:01:31.6]} 21... Rhe8 {[%clk 0:00:56.4]} 22. Ra5 {[%clk 0:01:31.7]}
22... Bf8 {[%clk 0:00:36.5]} 23. c3 {[%clk 0:01:12.1]} 23... dxc3 {[%clk
0:00:26.1]} 24. Nxc3 {[%clk 0:01:12.9]} 24... d4 {[%clk 0:00:19.2]} 25. Ne2
{[%clk 0:01:01.3]} 25... Bh6 {[%clk 0:00:18.7]} 26. Bf7 {[%clk 0:00:57.9]} 26...
Rf8 {[%clk 0:00:18.2]} 27. Be6+ {[%clk 0:00:55.5]} 27... Bd7 {[%clk 0:00:18.5]}
28. Bxe7 {[%clk 0:00:49.7]} 28... Bxe6 {[%clk 0:00:17.2]} 29. Rc5+ {[%clk
0:00:48]} 29... Kb8 {[%clk 0:00:11.5]} 30. Rc7 {[%clk 0:00:47.3]} 30... Be3+
{[%clk 0:00:06.6]} 31. Kh2 {[%clk 0:00:46.3]} 31... Rfe8 {[%clk 0:00:07.4]} 32.
Bxf6 {[%clk 0:00:44.3]} 32... Rd7 {[%clk 0:00:06.2]} 33. Bxe5 {[%clk 0:00:43.5]}
33... Rxc7 {[%clk 0:00:06.7]} 34. Bxc7+ {[%clk 0:00:38.6]} 34... Kc8 {[%clk
0:00:05.6]} 35. Be5 {[%clk 0:00:37.2]} 35... Rd8 {[%clk 0:00:05.8]} 36. Bf6
{[%clk 0:00:27.7]} 36... Rd6 {[%clk 0:00:05.6]} 37. Be5 {[%clk 0:00:25.1]} 37...
Rd7 {[%clk 0:00:04.6]} 38. f4 {[%clk 0:00:21.5]} 38... Bb3 {[%clk 0:00:05.4]}
39. f5 {[%clk 0:00:20.7]} 39... Rf7 {[%clk 0:00:01.8]} 40. Nxd4 {[%clk
0:00:18.6]} 40... Bxd4 {[%clk 0:00:01.8]} 41. Bxd4 {[%clk 0:00:19.5]} 41... gxf5
{[%clk 0:00:02.4]} 42. exf5 {[%clk 0:00:19.2]} 42... Kd7 {[%clk 0:00:02.8]} 43.
f6 {[%clk 0:00:18.4]} 43... Ke6 {[%clk 0:00:02.7]} 44. Bc3 {[%clk 0:00:18.2]}
44... Bd5 {[%clk 0:00:01.7]} 45. Re1+ {[%clk 0:00:18.1]} 45... Kd6 {[%clk
0:00:02.2]} 46. Re5 {[%clk 0:00:16.7]} 46... Bc6 {[%clk 0:00:02.1]} 47. Rxh5
{[%clk 0:00:16.3]} 47... Ke6 {[%clk 0:00:01.6]} 48. Rg5 {[%clk 0:00:16.3]} 48...
Rf8 {[%clk 0:00:01.9]} 49. g4 {[%clk 0:00:15.6]} 49... Rh8 {[%clk 0:00:02.3]}
50. Kg3 {[%clk 0:00:15.8]} 50... Rd8 {[%clk 0:00:02.7]} 51. Re5+ {[%clk
0:00:14.3]} 51... Kf7 {[%clk 0:00:02.5]} 52. Re7+ {[%clk 0:00:13.8]} 52... Kf8
{[%clk 0:00:02.9]} 53. Re3 {[%clk 0:00:13.8]} 53... Kf7 {[%clk 0:00:03]} 54. h5
{[%clk 0:00:13.6]} 54... Bd5 {[%clk 0:00:02.3]} 55. Kh4 {[%clk 0:00:13.8]} 55...
Be6 {[%clk 0:00:02.4]} 56. g5 {[%clk 0:00:13.9]} 56... Rd6 {[%clk 0:00:02.7]}
57. g6+ {[%clk 0:00:14.2]} 57... Ke8 {[%clk 0:00:02.9]} 58. Kg5 {[%clk 0:00:14]}
58... Kd7 {[%clk 0:00:01.7]} 59. f7 {[%clk 0:00:13.1]} 59... Ke7 {[%clk
0:00:01.1]} 60. Bg7 {[%clk 0:00:12.6]} 60... Rd8 {[%clk 0:00:01.8]} 61. f8=Q+
{[%clk 0:00:12.2]} 61... Rxf8 {[%clk 0:00:02]} 62. Bxf8+ {[%clk 0:00:13.1]}
62... Kd7 {[%clk 0:00:01.3]} 63. Rxe6 {[%clk 0:00:12.7]} 1-0

[Event "Early-Titled-Tuesday-Blitz-February-13-2024"]
[Site "Chess.com"]
[Date "2024.02.13"]
[Round "6"]
[White "Zavgorodniy_Sergiy"]
[Black "GMKrikor"]
[Result "1-0"]
[WhiteElo "2647"]
[BlackElo "2873"]
[TimeControl "180+1"]
[EndTime "9:11:21 PST"]
[Termination "Zavgorodniy_Sergiy won on time"]

1. d4 {[%clk 0:03:00.9]} 1... Nf6 {[%clk 0:02:59.7]} 2. c4 {[%clk 0:03:01.2]}
2... g6 {[%clk 0:02:59.9]} 3. Nf3 {[%clk 0:03:01.6]} 3... Bg7 {[%clk 0:03:00]}
4. Nc3 {[%clk 0:03:02]} 4... d5 {[%clk 0:03:00.3]} 5. cxd5 {[%clk 0:03:02.5]}
5... Nxd5 {[%clk 0:03:01.2]} 6. e4 {[%clk 0:03:02.9]} 6... Nxc3 {[%clk
0:03:01.7]} 7. bxc3 {[%clk 0:03:03.8]} 7... c5 {[%clk 0:03:02.1]} 8. Be3 {[%clk
0:03:04.1]} 8... Qa5 {[%clk 0:03:01.9]} 9. Qd2 {[%clk 0:03:04.1]} 9... O-O
{[%clk 0:02:48.9]} 10. Rc1 {[%clk 0:03:03.6]} 10... Bg4 {[%clk 0:02:49.1]} 11.
d5 {[%clk 0:03:02.4]} 11... b5 {[%clk 0:02:49.1]} 12. Bxc5 {[%clk 0:03:01]}
12... Qc7 {[%clk 0:02:26.7]} 13. Bd4 {[%clk 0:02:55.8]} 13... Bxf3 {[%clk
0:02:22.7]} 14. gxf3 {[%clk 0:02:49.7]} 14... a6 {[%clk 0:02:14.5]} 15. Bxg7
{[%clk 0:02:44.2]} 15... Kxg7 {[%clk 0:02:15.4]} 16. Qd4+ {[%clk 0:02:44.1]}
16... Kg8 {[%clk 0:02:15.3]} 17. Be2 {[%clk 0:02:44.3]} 17... Nd7 {[%clk
0:02:15.5]} 18. O-O {[%clk 0:02:43.3]} 18... Rac8 {[%clk 0:02:10.6]} 19. Rfd1
{[%clk 0:02:35.1]} 19... Rfd8 {[%clk 0:02:02.8]} 20. a4 {[%clk 0:02:34.9]} 20...
bxa4 {[%clk 0:01:57.9]} 21. Qxa4 {[%clk 0:02:29.6]} 21... Nc5 {[%clk 0:01:56.5]}
22. Qa3 {[%clk 0:02:12.9]} 22... Qf4 {[%clk 0:01:52.5]} 23. c4 {[%clk 0:02:03]}
23... Qg5+ {[%clk 0:01:47.2]} 24. Kh1 {[%clk 0:02:01.9]} 24... e5 {[%clk
0:01:28.7]} 25. dxe6 {[%clk 0:01:37.7]} 25... Nxe6 {[%clk 0:01:18.5]} 26. Qxa6
{[%clk 0:01:34.4]} 26... Nd4 {[%clk 0:01:12.2]} 27. c5 {[%clk 0:01:20.7]} 27...
Rxc5 {[%clk 0:00:53.3]} 28. Rxc5 {[%clk 0:01:16.6]} 28... Qxc5 {[%clk
0:00:52.7]} 29. Qd3 {[%clk 0:01:08.5]} 29... Ne6 {[%clk 0:00:50.2]} 30. Qe3
{[%clk 0:01:05.1]} 30... Rxd1+ {[%clk 0:00:48.1]} 31. Bxd1 {[%clk 0:01:06]}
31... Qe5 {[%clk 0:00:46.9]} 32. Be2 {[%clk 0:01:02.6]} 32... Nf4 {[%clk
0:00:45.8]} 33. Bf1 {[%clk 0:00:59.1]} 33... g5 {[%clk 0:00:46.2]} 34. Kg1
{[%clk 0:00:57.4]} 34... h6 {[%clk 0:00:45]} 35. Qb6 {[%clk 0:00:54.1]} 35...
Kg7 {[%clk 0:00:44.4]} 36. Qe3 {[%clk 0:00:50.6]} 36... Ne6 {[%clk 0:00:41.4]}
37. Bc4 {[%clk 0:00:44]} 37... Qa1+ {[%clk 0:00:41.1]} 38. Bf1 {[%clk
0:00:43.7]} 38... Nf4 {[%clk 0:00:37.3]} 39. h4 {[%clk 0:00:36.8]} 39... Nh3+
{[%clk 0:00:30.4]} 40. Kg2 {[%clk 0:00:36.6]} 40... Nf4+ {[%clk 0:00:28.3]} 41.
Kg1 {[%clk 0:00:36.7]} 41... Qf6 {[%clk 0:00:19.3]} 42. hxg5 {[%clk 0:00:36.7]}
42... Qxg5+ {[%clk 0:00:12.5]} 43. Kh2 {[%clk 0:00:36.3]} 43... Qh4+ {[%clk
0:00:12.9]} 44. Kg1 {[%clk 0:00:36.3]} 44... Qg5+ {[%clk 0:00:11.9]} 45. Kh2
{[%clk 0:00:36.2]} 45... Qe5 {[%clk 0:00:09.7]} 46. Kg1 {[%clk 0:00:31.4]} 46...
h5 {[%clk 0:00:09.8]} 47. Qb6 {[%clk 0:00:28.4]} 47... f6 {[%clk 0:00:04.1]} 48.
Qa7+ {[%clk 0:00:26.3]} 48... Kh6 {[%clk 0:00:04.1]} 49. Qf7 {[%clk 0:00:20.8]}
49... Qg5+ {[%clk 0:00:03]} 50. Kh2 {[%clk 0:00:21]} 50... Qh4+ {[%clk
0:00:03.3]} 51. Kg1 {[%clk 0:00:21.2]} 51... Qg5+ {[%clk 0:00:04]} 52. Kh2
{[%clk 0:00:21.3]} 52... Qg7 {[%clk 0:00:04.6]} 53. Qxg7+ {[%clk 0:00:14.8]}
53... Kxg7 {[%clk 0:00:05.1]} 54. Kg3 {[%clk 0:00:15]} 54... Ne6 {[%clk
0:00:04.8]} 55. f4 {[%clk 0:00:15.6]} 55... Kh6 {[%clk 0:00:04.6]} 56. Bh3
{[%clk 0:00:15]} 56... Nc5 {[%clk 0:00:04.4]} 57. f3 {[%clk 0:00:14.5]} 57...
Nd3 {[%clk 0:00:03.6]} 58. Bf5 {[%clk 0:00:14.1]} 58... Nb4 {[%clk 0:00:03.9]}
59. e5 {[%clk 0:00:14.2]} 59... Nc6 {[%clk 0:00:03.6]} 60. exf6 {[%clk
0:00:12.6]} 60... Nd8 {[%clk 0:00:03.8]} 61. Kh4 {[%clk 0:00:11.9]} 61... Nf7
{[%clk 0:00:03.8]} 62. Be6 {[%clk 0:00:12]} 62... Nd8 {[%clk 0:00:03.6]} 63. Bd5
{[%clk 0:00:11.2]} 63... Kg6 {[%clk 0:00:04.2]} 64. f7 {[%clk 0:00:11.6]} 64...
Kg7 {[%clk 0:00:03.3]} 65. Kxh5 {[%clk 0:00:11.5]} 65... Kf8 {[%clk 0:00:02.7]}
66. Kg5 {[%clk 0:00:11.5]} 66... Kg7 {[%clk 0:00:02.8]} 67. f5 {[%clk
0:00:11.2]} 67... Kf8 {[%clk 0:00:03.4]} 68. Kg6 {[%clk 0:00:11.2]} 1-0